fUSD/lending_fUSD_20240116
["ID","MTS","AMOUNT","RATE_DAILY","PERIOD"]
[311732297,1705367466160,-851.73,0.00022736,2]
[311732298,1705367466170,-958.59,0.00022736,2]
[311732299,1705367466181,-611.3,0.00022736,2]
[311732300,1705367466190,-714.32,0.00022736,2]
[311732301,1705367466200,-500.0,0.00022736,2]
[311732302,1705367466210,-813.53,0.00022736,2]
[311732303,1705367466220,-500.0,0.00022736,2]
[311732304,1705367466229,-518.27,0.00022736,2]
[311732305,1705367466238,-949.38,0.00022736,2]
[311732306,1705367466247,-638.02013536,0.00022736,2]
[311732307,1705367466256,-1414.96,0.00022736,2]
[311732308,1705367466265,-885.66,0.00022736,2]
[311732309,1705367466274,-773.02,0.00022736,2]
[311732310,1705367466283,-1086.48,0.00022736,2]
[311732311,1705367466292,-1222.08,0.00022736,2]
[311732312,1705367466301,-1488.44,0.00022736,2]
[311732313,1705367466310,-555.6375489,0.00022736,2]
[311732314,1705367466318,-503.14,0.00022736,2]
[311732315,1705367466327,-755.32,0.00022736,2]
[311732316,1705367466337,-500.0,0.00022736,2]
[311732317,1705367466346,-500.0,0.00022736,2]
[311732318,1705367466355,-1391.76,0.00022736,2]
[311732319,1705367466364,-815.31,0.00022736,2]
[311732320,1705367466373,-1062.5,0.00022736,2]
[311732321,1705367466382,-1355.0,0.00022736,2]
[311732322,1705367466391,-903.65,0.00022736,2]
[311732323,1705367466402,-800.25,0.00022736,2]
[311732324,1705367466411,-1416.45,0.00022736,2]
[311732325,1705367466420,-500.0,0.00022736,2]
[311732326,1705367466430,-965.23,0.00022736,2]
[311732327,1705367466439,-946.78,0.00022736,2]
[311732328,1705367466448,-827.39,0.00022736,2]
[311732329,1705367466456,-1304.85,0.00022736,2]
[311732330,1705367466465,-1213.65,0.00022736,2]
[311732331,1705367466475,-970.08,0.00022736,2]
[311732332,1705367466484,-1112.47,0.00022736,2]
[311732333,1705367466492,-796.48,0.00022736,2]
[311732334,1705367466501,-1115.8,0.00022736,2]
[311732335,1705367466510,-500.0,0.00022736,2]
[311732336,1705367466519,-719.18,0.00022736,2]
[311732337,1705367466528,-906.77,0.00022736,2]
[311732338,1705367466537,-814.55,0.00022736,2]
[311732339,1705367466545,-1227.66,0.00022736,2]
[311732340,1705367466554,-1269.9,0.00022736,2]
[311732341,1705367466563,-1383.74,0.00022736,2]
[311732342,1705367466572,-1122.67,0.00022736,2]
[311732343,1705367466581,-3515.09,0.00022736,2]
[311732344,1705367466590,-1170.95,0.00022736,2]
[311732345,1705367466600,-1008.82,0.00022736,2]
[311732346,1705367466609,-909.45,0.00022736,2]
[311732347,1705367466618,-500.0,0.00022736,2]
[311732348,1705367466627,-942.47,0.00022736,2]
[311732349,1705367466635,-501.34,0.00022736,2]
[311732350,1705367466644,-220.5,0.00022744,2]
[311732351,1705367466655,-30892.25800709,0.00022751,2]
[311732352,1705367466664,-153.0,0.00022766,2]
[311732353,1705367466673,-153.0,0.00022766,2]
[311732354,1705367466682,-153.0,0.00022766,2]
[311732355,1705367466691,-153.0,0.00022766,2]
[311732356,1705367466701,-153.0,0.00022766,2]
[311732357,1705367466709,-153.0,0.00022766,2]
[311732358,1705367466718,-200.0,0.00022766,2]
[311732359,1705367466727,-800.0,0.00022766,2]
[311732360,1705367466736,-374.58839925,0.00022783,2]
[311732361,1705367466745,-539.64671735,0.00022784,2]
[311732362,1705367466754,-7500.0,0.00022794,2]
[311732363,1705367466763,-151.0,0.00022794,7]
[311732364,1705367466773,-151.0,0.00022794,7]
[311732365,1705367466782,-151.631003,0.00022794,7]
[311732366,1705367466791,-155.13974048,0.00022796,2]
[311732367,1705367466800,-151.0,0.00022797,7]
[311732368,1705367466809,-500.0,0.00022797,2]
[311732369,1705367466818,-500.0,0.00022797,2]
[311732370,1705367466827,-500.0,0.00022797,2]
[311732371,1705367466836,-500.0,0.00022797,2]
[311732372,1705367466845,-692.17,0.00022797,2]
[311732373,1705367466855,-646.8,0.00022797,2]
[311732374,1705367466864,-500.0,0.00022797,2]
[311732375,1705367466873,-503.64,0.00022797,2]
[311732376,1705367466882,-775.56,0.00022797,2]
[311732377,1705367466891,-768.18,0.00022797,2]
[311732378,1705367466900,-500.0,0.00022797,2]
[311732379,1705367466909,-820.95,0.00022797,2]
[311732380,1705367466918,-806.72,0.00022797,2]
[311732381,1705367466927,-416.02587873,0.00022797,2]
[311732382,1705367466936,-500.0,0.00022797,2]
[311732383,1705367466946,-522.46,0.00022797,2]
[311732384,1705367466955,-500.0,0.00022797,2]
[311732385,1705367466964,-500.0,0.00022797,2]
[311732386,1705367466973,-720.7,0.00022797,2]
[311732387,1705367466981,-433.62935115,0.00022797,2]
[311732388,1705367466990,-500.0,0.00022797,2]
[311732389,1705367466999,-574.91,0.00022797,2]
[311732390,1705367467008,-500.0,0.00022797,2]
[311732391,1705367467017,-500.0,0.00022797,2]
[311732392,1705367467026,-500.0,0.00022797,2]
[311732393,1705367467035,-599.48,0.00022797,2]
[311732394,1705367467044,-500.0,0.00022797,2]
[311732395,1705367467053,-185.89854457,0.00022797,2]
[311732396,1705367467062,-500.0,0.00022797,2]
[311732397,1705367467071,-500.0,0.00022797,2]
[311732398,1705367467081,-1000.0,0.00022797,2]
[311732399,1705367467090,-500.0,0.00022797,2]
[311732400,1705367467099,-500.0,0.00022797,2]
[311732401,1705367467108,-500.0,0.00022797,2]
[311732402,1705367467118,-776.33,0.00022797,2]
[311732403,1705367467129,-500.0,0.00022797,2]
[311732404,1705367467139,-500.0,0.00022797,2]
[311732405,1705367467148,-500.0,0.00022797,2]
[311732406,1705367467159,-500.0,0.00022797,2]
[311732407,1705367467168,-927.72,0.00022797,2]
[311732408,1705367467178,-626.14,0.00022797,2]
[311732409,1705367467187,-500.0,0.00022797,2]
[311732410,1705367467196,-607.4,0.00022797,2]
[311732411,1705367467204,-500.0,0.00022797,2]
[311732412,1705367467216,-500.0,0.00022797,2]
[311732413,1705367467225,-500.0,0.00022797,2]
[311732414,1705367467235,-500.0,0.00022797,2]
[311732415,1705367467244,-660.73,0.00022797,2]
[311732416,1705367467253,-610.48,0.00022797,2]
[311732417,1705367467262,-500.0,0.00022797,2]
[311732418,1705367467271,-545.69,0.00022797,2]
[311732419,1705367467280,-534.73,0.00022797,2]
[311732420,1705367467288,-500.0,0.00022797,2]
[311732421,1705367467297,-500.0,0.00022797,2]
[311732422,1705367467306,-500.0,0.00022797,2]
[311732423,1705367467314,-500.0,0.00022797,2]
[311732424,1705367467323,-500.0,0.00022797,2]
[311732425,1705367467332,-500.0,0.00022797,2]
[311732426,1705367467341,-500.0,0.00022797,2]
[311732427,1705367467350,-711.48,0.00022797,2]
[311732428,1705367467358,-500.0,0.00022797,2]
[311732429,1705367467368,-829.56,0.00022797,2]
[311732430,1705367467376,-500.0,0.00022797,2]
[311732431,1705367467386,-500.0,0.00022797,2]
[311732432,1705367467395,-705.61,0.00022797,2]
[311732433,1705367467404,-812.96,0.00022797,2]
[311732434,1705367467414,-500.0,0.00022797,2]
[311732435,1705367467423,-1228.02,0.00022797,2]
[311732436,1705367467432,-545.91371271,0.00022797,2]
[311732437,1705367467441,-533.63,0.00022797,2]
[311732438,1705367467451,-732.26,0.00022797,2]
[311732439,1705367467460,-559.54,0.00022797,2]
[311732440,1705367467468,-753.96,0.00022797,2]
[311732441,1705367467477,-481.45021,0.00022797,2]
[311732442,1705367467486,-500.0,0.00022797,2]
[311732443,1705367467494,-500.0,0.00022797,2]
[311732444,1705367467503,-500.0,0.00022797,2]
[311732445,1705367467512,-500.0,0.00022797,2]
[311732446,1705367467521,-725.28,0.00022797,2]
[311732447,1705367467529,-500.0,0.00022797,2]
[311732448,1705367467538,-500.0,0.00022797,2]
[311732449,1705367467547,-528.06,0.00022797,2]
[311732450,1705367467555,-512.38,0.00022797,2]
[311732451,1705367467564,-500.0,0.00022797,2]
[311732452,1705367467573,-500.0,0.00022797,2]
[311732453,1705367467582,-1468.3,0.00022797,2]
[311732454,1705367467591,-869.41,0.00022797,2]
[311732455,1705367467599,-161.13875635,0.00022797,2]
[311732456,1705367467608,-500.0,0.00022797,2]
[311732457,1705367467617,-500.0,0.00022797,2]
[311732458,1705367467626,-500.0,0.00022797,2]
[311732459,1705367467635,-500.0,0.00022797,2]
[311732460,1705367467644,-738.76,0.00022797,2]
[311732461,1705367467653,-500.0,0.00022797,2]
[311732462,1705367467662,-500.0,0.00022797,2]
[311732463,1705367467671,-1129.52,0.00022797,2]
[311732464,1705367467681,-500.0,0.00022797,2]
[311732465,1705367467689,-500.0,0.00022797,2]
[311732466,1705367467698,-708.42,0.00022797,2]
[311732467,1705367467706,-570.9,0.00022797,2]
[311732468,1705367467715,-679.21,0.00022797,2]
[311732469,1705367467724,-500.0,0.00022797,2]
[311732470,1705367467734,-671.47,0.00022797,2]
[311732471,1705367467743,-529.57,0.00022797,2]
[311732472,1705367467752,-500.0,0.00022797,2]
[311732473,1705367467762,-500.0,0.00022797,2]
[311732474,1705367467771,-250.9795754,0.00022797,2]
[311732475,1705367467781,-511.08819812,0.00022797,2]
[311732476,1705367467790,-500.0,0.00022797,2]
[311732477,1705367467799,-500.0,0.00022797,2]
[311732478,1705367467808,-500.0,0.00022797,2]
[311732479,1705367467817,-218.81939751,0.00022797,2]
[311732480,1705367467826,-500.0,0.00022797,2]
[311732481,1705367467835,-500.0,0.00022797,2]
[311732482,1705367467844,-500.0,0.00022797,2]
[311732483,1705367467853,-500.0,0.00022797,2]
[311732484,1705367467862,-500.0,0.00022797,2]
[311732485,1705367467872,-537.92,0.00022797,2]
[311732486,1705367467881,-500.0,0.00022797,2]
[311732487,1705367467890,-765.94,0.00022797,2]
[311732488,1705367467900,-513.13,0.00022797,2]
[311732489,1705367467909,-523.02800986,0.00022797,2]
[311732490,1705367467919,-500.0,0.00022797,2]
[311732491,1705367467928,-500.0,0.00022797,2]
[311732492,1705367467936,-500.0,0.00022797,2]
[311732493,1705367467946,-640.19,0.00022797,2]
[311732494,1705367467954,-500.0,0.00022797,2]
[311732495,1705367467963,-1129.19,0.00022797,2]
[311732496,1705367467972,-500.0,0.00022797,2]
[311732497,1705367467982,-500.0,0.00022797,2]
[311732498,1705367467991,-500.0,0.00022797,2]
[311732499,1705367468000,-500.0,0.00022797,2]
[311732500,1705367468009,-500.0,0.00022797,2]
[311732501,1705367468019,-500.0,0.00022797,2]
[311732502,1705367468028,-500.0,0.00022797,2]
[311732503,1705367468037,-559.34,0.00022797,2]
[311732504,1705367468047,-500.0,0.00022797,2]
[311732505,1705367468056,-500.0,0.00022797,2]
[311732506,1705367468065,-792.71,0.00022797,2]
[311732507,1705367468075,-642.73,0.00022797,2]
[311732508,1705367468084,-500.0,0.00022797,2]
[311732509,1705367468093,-500.0,0.00022797,2]
[311732510,1705367468102,-500.0,0.00022797,2]
[311732511,1705367468111,-772.16,0.00022797,2]
[311732512,1705367468120,-569.45,0.00022797,2]
[311732513,1705367468130,-500.0,0.00022797,2]
[311732514,1705367468138,-500.0,0.00022797,2]
[311732515,1705367468147,-500.0,0.00022797,2]
[311732516,1705367468157,-500.0,0.00022797,2]
[311732517,1705367468166,-500.0,0.000228,2]
[311732518,1705367468176,-401.3579,0.000228,2]
[311732519,1705367468185,-200.0,0.00022815,2]
[311732520,1705367468194,-800.0,0.00022815,2]
[311732521,1705367468203,-30892.25800709,0.00022826,2]
[311732522,1705367468213,-220.5,0.00022855,2]
[311732523,1705367468222,-155.0,0.00022893,2]
[311732524,1705367468231,-151.0,0.00022894,7]
[311732525,1705367468240,-169.914393,0.00022894,7]
[311732526,1705367468249,-12933.7498417,0.00022894,2]
[311732527,1705367468259,-70149.2579017,0.00022894,2]
[311732528,1705367468268,-2410.9609614,0.00022894,2]
[311732529,1705367468277,-13073.6363138,0.00022894,2]
[311732530,1705367468286,-821.2972057,0.00022894,2]
[311732531,1705367468294,-133367.9957437,0.00022894,2]
[311732532,1705367468303,-23306.9429459,0.00022894,2]
[311732533,1705367468312,-151.0,0.00022898,7]
[311732534,1705367468320,-243.65434,0.00022898,7]
[311732535,1705367468329,-151.0,0.00022898,7]
[311732536,1705367468338,-151.0,0.00022898,7]
[311732537,1705367468347,-259.3728,0.00022898,2]
[311732538,1705367468356,-259.3728,0.00022898,2]
[311732539,1705367468365,-151.0,0.00022898,7]
[311732540,1705367468374,-154.844232,0.00022898,7]
[311732541,1705367468383,-154.844232,0.00022898,7]
[311732542,1705367468392,-151.0,0.00022898,7]
[311732543,1705367468402,-2228.7471689,0.00022899,2]
[311732544,1705367468411,-300.0,0.00022899,2]
[311732545,1705367468419,-304.15780688,0.00022899,2]
[311732546,1705367468429,-758033.70484279,0.000229,2]
[311732547,1705367468439,-100000.0,0.000229,2]
[311732548,1705367468447,-100000.0,0.000229,2]
[311732549,1705367468456,-200000.0,0.000229,2]
[311732550,1705367468465,-2000.0,0.000229,2]
[311732551,1705367468474,-200.0,0.000229,2]
[311732552,1705367468483,-151.0,0.000229,7]
[311732553,1705367468491,-539.64671735,0.000229,2]
[311732554,1705367468501,-151.0,0.000229,7]
[311732555,1705367468510,-374.58839925,0.000229,2]
[311732556,1705367468518,-166.65186891,0.000229,2]
[311732557,1705367468527,-166.65186891,0.000229,2]
[311732558,1705367468536,-166.65186891,0.000229,2]
[311732559,1705367468545,-166.65186891,0.000229,2]
[311732560,1705367468554,-166.65186891,0.000229,2]
[311732561,1705367468563,-166.65186891,0.000229,2]
[311732562,1705367468572,-166.65186891,0.000229,2]
[311732563,1705367468581,-151.0,0.000229,7]
[311732564,1705367468589,-151.0,0.000229,7]
[311732565,1705367468598,-30892.25800709,0.000229,2]
[311732566,1705367468607,-1732.0,0.000229,2]
[311732567,1705367468616,-262.53514392,0.000229,6]
[311732568,1705367468625,-719.39905568,0.000229,2]
[311732569,1705367468634,-719.39905567,0.000229,2]
[311732570,1705367468644,-719.39905567,0.000229,2]
[311732571,1705367468653,-719.39905567,0.000229,2]
[311732572,1705367468662,-719.39905567,0.000229,2]
[311732573,1705367468671,-719.39905567,0.000229,2]
[311732574,1705367468681,-719.39905567,0.000229,2]
[311732575,1705367468690,-719.39905567,0.000229,2]
[311732576,1705367468699,-719.39905567,0.000229,2]
[311732577,1705367468708,-290.97,0.000229,2]
[311732578,1705367468717,-719.39905567,0.000229,2]
[311732579,1705367468725,-719.39905567,0.000229,2]
[311732580,1705367468734,-154243.3447777,0.0002291,2]
[311732581,1705367468743,-193.83,0.00022925,2]
[311732582,1705367468752,-159.35,0.00022942,2]
[311732583,1705367468761,-220.5,0.00022967,2]
[311732584,1705367468771,-1976.66,0.00022998,2]
[311732585,1705367468780,-3294.38484961,0.00022999,2]
[311732586,1705367468789,-150.01,0.00022999,2]
[311732587,1705367468798,-1184.96,0.00022999,2]
[311732588,1705367468807,-3927.97,0.00022999,2]
[311732589,1705367468816,-2466.28,0.00022999,2]
[311732590,1705367468825,-500.0,0.00022999,2]
[311732591,1705367468834,-834.98,0.00022999,2]
[311732592,1705367468844,-2030.36,0.00022999,2]
[311732593,1705367468853,-16302.92,0.00022999,2]
[311732594,1705367468862,-1347.82,0.00022999,2]
[311732595,1705367468871,-1237.85,0.00022999,2]
[311732596,1705367468880,-1447.84,0.00022999,2]
[311732597,1705367468889,-1403.26,0.00022999,2]
[311732598,1705367468898,-3433.26,0.00022999,2]
[311732599,1705367468908,-1844.97,0.00022999,2]
[311732600,1705367468917,-1173.52,0.00022999,2]
[311732601,1705367468926,-1595.43,0.00022999,2]
[311732602,1705367468935,-1615.39,0.00022999,2]
[311732603,1705367468945,-1170.01,0.00022999,2]
[311732604,1705367468953,-1113.5,0.00022999,2]
[311732605,1705367468962,-300.0,0.00022999,2]
[311732606,1705367468971,-500.0,0.00022999,2]
[311732607,1705367468980,-1814.24,0.00022999,2]
[311732608,1705367468989,-967.27,0.00022999,2]
[311732609,1705367468999,-856.14,0.00022999,2]
[311732610,1705367469009,-2339.5,0.00022999,2]
[311732611,1705367469018,-595.89,0.00022999,5]
[311732612,1705367469027,-3952.03,0.00022999,2]
[311732613,1705367469036,-1027.0,0.00022999,2]
[311732614,1705367469045,-865.16,0.00022999,2]
[311732615,1705367469054,-1152250.2154594,0.00023,2]
[311732616,1705367469063,-7007198.46434067,0.00023,2]
[311732617,1705367469073,-151.0,0.00023,7]
[311732618,1705367469082,-151.0,0.00023,7]
[311732619,1705367469091,-158.967933,0.00023,7]
[311732620,1705367469101,-151.0,0.00023,7]
[311732621,1705367469110,-151.0,0.00023,7]
[311732622,1705367469120,-290.632707,0.00023,7]
[311732623,1705367469132,-151.0,0.00023,7]
[311732624,1705367469142,-151.0,0.00023,7]
[311732625,1705367469153,-151.0,0.00023,7]
[311732626,1705367469164,-151.0,0.00023,7]
[311732627,1705367469175,-151.0,0.00023,7]
[311732628,1705367469185,-151.0,0.00023,7]
[311732629,1705367469194,-151.0,0.00023,7]
[311732630,1705367469203,-259.3728,0.00023,2]
[311732631,1705367469212,-259.3728,0.00023,2]
[311732632,1705367469221,-259.3728,0.00023,2]
[311732633,1705367469229,-259.3728,0.00023,2]
[311732634,1705367469239,-151.0,0.00023,7]
[311732635,1705367469248,-227.646925,0.00023,7]
[311732636,1705367469257,-154.844232,0.00023,7]
[311732637,1705367469266,-154.844232,0.00023,7]
[311732638,1705367469275,-154.844232,0.00023,7]
[311732639,1705367469284,-154.844232,0.00023,7]
[311732640,1705367469293,-151.0,0.00023,7]
[311732641,1705367469302,-151.0,0.00023,7]
[311732642,1705367469311,-151.0,0.00023,7]
[311732643,1705367469320,-151.0,0.00023,7]
[311732644,1705367469329,-169.914393,0.00023,7]
[311732645,1705367469338,-169.914393,0.00023,7]
[311732646,1705367469347,-946.9,0.00023003,2]
[311732647,1705367469356,-1382.59,0.00023003,2]
[311732648,1705367469365,-5349.57,0.00023003,2]
[311732649,1705367469374,-1032.75,0.00023003,2]
[311732650,1705367469383,-2244.41,0.00023003,2]
[311732651,1705367469392,-9767.43,0.00023003,2]
[311732652,1705367469401,-1588.97,0.00023003,2]
[311732653,1705367469409,-14702.97,0.00023003,2]
[311732654,1705367469418,-798.6,0.00023003,2]
[311732655,1705367469427,-4716.94,0.00023003,2]
[311732656,1705367469435,-3408.86,0.00023003,2]
[311732657,1705367469444,-28462.82,0.00023003,2]
[311732658,1705367469453,-2191.53,0.00023003,2]
[311732659,1705367469462,-1489.4,0.00023003,2]
[311732660,1705367469471,-1945.41,0.00023003,2]
[311732661,1705367469480,-1054.19,0.00023003,2]
[311732662,1705367469489,-5339.57,0.00023003,2]
[311732663,1705367469498,-1700.51,0.00023003,2]
[311732664,1705367469507,-798.99,0.00023003,2]
[311732665,1705367469517,-889.04,0.00023003,2]
[311732666,1705367469526,-964.92,0.00023003,2]
[311732667,1705367469534,-1928.11,0.00023003,2]
[311732668,1705367469543,-2074.73,0.00023003,2]
[311732669,1705367469552,-592.43,0.00023003,2]
[311732670,1705367469561,-6513.01,0.00023003,2]
[311732671,1705367469570,-1637.97,0.00023003,2]
[311732672,1705367469580,-500.0,0.00023004,2]
[311732673,1705367469590,-564.17,0.00023004,2]
[311732674,1705367469600,-500.0,0.00023004,2]
[311732675,1705367469609,-500.0,0.00023004,2]
[311732676,1705367469619,-500.0,0.00023004,2]
[311732677,1705367469629,-500.0,0.00023004,2]
[311732678,1705367469639,-500.0,0.00023004,2]
[311732679,1705367469649,-1271.66,0.00023004,2]
[311732680,1705367469659,-886.52,0.00023004,2]
[311732681,1705367469670,-610.98,0.00023004,2]
[311732682,1705367469680,-697.25,0.00023004,2]
[311732683,1705367469718,-654.9,0.00023004,2]
[311732684,1705367469728,-500.0,0.00023004,2]
[311732685,1705367469738,-500.0,0.00023004,2]
[311732686,1705367469749,-500.0,0.00023004,2]
[311732687,1705367469758,-500.0,0.00023004,2]
[311732688,1705367469768,-500.0,0.00023004,2]
[311732689,1705367469778,-500.0,0.00023004,2]
[311732690,1705367469788,-1476.64,0.00023004,2]
[311732691,1705367469798,-500.0,0.00023004,2]
[311732692,1705367469808,-500.0,0.00023004,2]
[311732693,1705367469819,-500.0,0.00023004,2]
[311732694,1705367469829,-799.56,0.00023004,2]
[311732695,1705367469839,-389.32880113,0.00023004,2]
[311732696,1705367469849,-500.0,0.00023004,2]
[311732697,1705367469859,-500.0,0.00023004,2]
[311732698,1705367469870,-500.0,0.00023004,2]
[311732699,1705367469881,-500.0,0.00023004,2]
[311732700,1705367469891,-500.0,0.00023004,2]
[311732701,1705367469902,-512.22909661,0.00023004,2]
[311732702,1705367469912,-591.63,0.00023004,2]
[311732703,1705367469922,-524.37764216,0.00023004,2]
[311732704,1705367469933,-500.0,0.00023004,2]
[311732705,1705367469943,-500.0,0.00023004,2]
[311732706,1705367469953,-500.0,0.00023004,2]
[311732707,1705367469963,-713.94,0.00023004,2]
[311732708,1705367469973,-500.0,0.00023004,2]
[311732709,1705367469983,-638.35,0.00023004,2]
[311732710,1705367469993,-500.0,0.00023004,2]
[311732711,1705367470003,-500.0,0.00023004,2]
[311732712,1705367470013,-781.18,0.00023004,2]
[311732713,1705367470022,-500.0,0.00023006,2]
[311732714,1705367470031,-500.0,0.00023006,2]
[311732715,1705367470041,-500.0,0.00023006,2]
[311732716,1705367470052,-581.71,0.00023006,2]
[311732717,1705367470061,-502.4,0.00023006,2]
[311732718,1705367470071,-796.32,0.00023006,2]
[311732719,1705367470081,-500.0,0.00023006,2]
[311732720,1705367470091,-500.0,0.00023006,2]
[311732721,1705367470100,-500.0,0.00023006,2]
[311732722,1705367470110,-500.0,0.00023006,2]
[311732723,1705367470120,-1255.48,0.00023006,2]
[311732724,1705367470130,-500.0,0.00023006,2]
[311732725,1705367470140,-1069.96,0.00023006,2]
[311732726,1705367470150,-545.54,0.00023006,2]
[311732727,1705367470160,-818.7,0.00023006,2]
[311732728,1705367470170,-500.0,0.00023006,2]
[311732729,1705367470180,-1221.42,0.00023006,2]
[311732730,1705367470190,-500.0,0.00023006,2]
[311732731,1705367470199,-761.06,0.00023006,2]
[311732732,1705367470210,-500.0,0.00023006,2]
[311732733,1705367470219,-645.46,0.00023006,2]
[311732734,1705367470229,-679.09,0.00023006,2]
[311732735,1705367470239,-500.0,0.00023006,2]
[311732736,1705367470249,-500.0,0.00023006,2]
[311732737,1705367470259,-502.07,0.00023006,2]
[311732738,1705367470268,-598.61,0.00023006,2]
[311732739,1705367470277,-779.79,0.00023006,2]
[311732740,1705367470287,-500.0,0.00023006,2]
[311732741,1705367470297,-715.94,0.00023006,2]
[311732742,1705367470307,-500.0,0.00023006,2]
[311732743,1705367470317,-582.4,0.00023006,2]
[311732744,1705367470327,-657.1,0.00023006,2]
[311732745,1705367470338,-1033.9,0.00023006,2]
[311732746,1705367470348,-694.4,0.00023006,2]
[311732747,1705367470358,-995.24,0.00023006,2]
[311732748,1705367470368,-500.0,0.00023006,2]
[311732749,1705367470378,-676.64,0.00023006,2]
[311732750,1705367470387,-753.21,0.00023006,2]
[311732751,1705367470397,-500.0,0.00023006,2]
[311732752,1705367470408,-500.0,0.00023006,2]
[311732753,1705367470418,-595.41,0.00023006,2]
[311732754,1705367470427,-500.0,0.00023006,2]
[311732755,1705367470437,-769.64,0.00023006,2]
[311732756,1705367470447,-500.0,0.00023006,2]
[311732757,1705367470457,-682.94,0.00023006,2]
[311732758,1705367470466,-871.75,0.00023006,2]
[311732759,1705367470476,-508.6,0.00023006,2]
[311732760,1705367470485,-500.0,0.00023006,2]
[311732761,1705367470495,-797.89,0.00023006,2]
[311732762,1705367470505,-500.0,0.00023006,2]
[311732763,1705367470514,-786.17,0.00023006,2]
[311732764,1705367470524,-500.0,0.00023006,2]
[311732765,1705367470535,-545.20514005,0.00023006,2]
[311732766,1705367470545,-510.49,0.00023006,2]
[311732767,1705367470555,-664.28,0.00023006,2]
[311732768,1705367470565,-500.0,0.00023006,2]
[311732769,1705367470575,-500.0,0.00023006,2]
[311732770,1705367470585,-559.52,0.00023006,2]
[311732771,1705367470594,-500.0,0.00023006,2]
[311732772,1705367470604,-598.77,0.00023006,2]
[311732773,1705367470614,-500.0,0.00023006,2]
[311732774,1705367470623,-510.18,0.00023006,2]
[311732775,1705367470633,-674.89,0.00023006,2]
[311732776,1705367470643,-725.31,0.00023006,2]
[311732777,1705367470654,-762.61,0.00023006,2]
[311732778,1705367470663,-500.0,0.00023006,2]
[311732779,1705367470676,-500.0,0.00023006,2]
[311732780,1705367470685,-797.37,0.00023006,2]
[311732781,1705367470694,-500.0,0.00023006,2]
[311732782,1705367470703,-1467.91,0.00023006,2]
[311732783,1705367470712,-500.0,0.00023006,2]
[311732784,1705367470722,-951.8,0.00023006,2]
[311732785,1705367470731,-841.68,0.00023006,2]
[311732786,1705367470741,-772.01,0.00023006,2]
[311732787,1705367470751,-903.04,0.00023006,2]
[311732788,1705367470761,-500.0,0.00023006,2]
[311732789,1705367470771,-500.0,0.00023006,2]
[311732790,1705367470781,-500.0,0.00023006,2]
[311732791,1705367470790,-644.47,0.00023006,2]
[311732792,1705367470800,-500.0,0.00023006,2]
[311732793,1705367470810,-500.0,0.00023006,2]
[311732794,1705367470820,-500.0,0.00023006,2]
[311732795,1705367470830,-500.0,0.00023006,2]
[311732796,1705367470840,-596.33,0.00023006,2]